[Event "*** Titled Tuesday Blitz"]
[Site "Chess.com"]
[Date "2020.11.10"]
[Round "5"]
[White "Chessdreamer2020"]
[Black "Aygehovit1992"]
[Result "0-1"]
[WhiteElo "2513"]
[BlackElo "2674"]
[TimeControl "180+1"]
[EndTime "11:00:18 PST"]
[Termination "Aygehovit1992 won by checkmate"]

1. e4 {[%clk 0:03:00.9]} 1... c5 {[%clk 0:02:57.3]} 2. Nf3 {[%clk 0:03:00]} 2...
d6 {[%clk 0:02:54.2]} 3. Bb5+ {[%clk 0:02:58.9]} 3... Bd7 {[%clk 0:02:50.9]} 4.
c4 {[%clk 0:02:57.6]} 4... e5 {[%clk 0:02:46.7]} 5. Nc3 {[%clk 0:02:57.4]} 5...
g6 {[%clk 0:02:44.4]} 6. Bxd7+ {[%clk 0:02:56.9]} 6... Qxd7 {[%clk 0:02:41.4]}
7. O-O {[%clk 0:02:57.1]} 7... Bg7 {[%clk 0:02:41.8]} 8. d3 {[%clk 0:02:57.2]}
8... Nc6 {[%clk 0:02:42.3]} 9. Bg5 {[%clk 0:02:47.6]} 9... h6 {[%clk 0:02:41.5]}
10. Bh4 {[%clk 0:02:47.6]} 10... g5 {[%clk 0:02:41.7]} 11. Bg3 {[%clk
0:02:47.4]} 11... Nge7 {[%clk 0:02:42.4]} 12. Nd2 {[%clk 0:02:46.5]} 12... f5
{[%clk 0:02:41.3]} 13. exf5 {[%clk 0:02:41.3]} 13... Qxf5 {[%clk 0:02:32.2]} 14.
Qh5+ {[%clk 0:02:32.8]} 14... Qg6 {[%clk 0:02:29.9]} 15. Qxg6+ {[%clk
0:02:26.7]} 15... Nxg6 {[%clk 0:02:30.8]} 16. Nde4 {[%clk 0:02:26.4]} 16...
O-O-O {[%clk 0:02:11.2]} 17. Nd5 {[%clk 0:02:25.4]} 17... Nd4 {[%clk 0:02:07.2]}
18. Rab1 {[%clk 0:02:16.6]} 18... Nf4 {[%clk 0:02:06.3]} 19. Rfd1 {[%clk
0:02:14.5]} 19... Nxd5 {[%clk 0:01:53.2]} 20. cxd5 {[%clk 0:02:14.3]} 20... a5
{[%clk 0:01:53.8]} 21. b3 {[%clk 0:02:05.8]} 21... Kd7 {[%clk 0:01:52.5]} 22. f3
{[%clk 0:01:59.3]} 22... b5 {[%clk 0:01:51]} 23. Bf2 {[%clk 0:01:59.6]} 23...
Rb8 {[%clk 0:01:43.3]} 24. Bxd4 {[%clk 0:01:58.9]} 24... exd4 {[%clk 0:01:44.2]}
25. Rf1 {[%clk 0:01:51.5]} 25... Be5 {[%clk 0:01:41.1]} 26. g3 {[%clk
0:01:50.1]} 26... Rhf8 {[%clk 0:01:40.9]} 27. Rf2 {[%clk 0:01:46]} 27... a4
{[%clk 0:01:06.8]} 28. Kg2 {[%clk 0:01:37.3]} 28... axb3 {[%clk 0:01:02.1]} 29.
axb3 {[%clk 0:01:37.5]} 29... Ra8 {[%clk 0:01:01.4]} 30. Re2 {[%clk 0:01:37.7]}
30... Rfc8 {[%clk 0:00:51.5]} 31. f4 {[%clk 0:01:24.3]} 31... gxf4 {[%clk
0:00:47.1]} 32. gxf4 {[%clk 0:01:25.2]} 32... Bxf4 {[%clk 0:00:44.9]} 33. Nf6+
{[%clk 0:01:25.4]} 33... Kc7 {[%clk 0:00:43.3]} 34. Re7+ {[%clk 0:01:22.9]}
34... Kb6 {[%clk 0:00:42.9]} 35. Kf3 {[%clk 0:01:20.3]} 35... Bd2 {[%clk
0:00:36.5]} 36. Ne4 {[%clk 0:01:19.8]} 36... Rf8+ {[%clk 0:00:34.2]} 37. Kg4
{[%clk 0:01:13.2]} 37... Bf4 {[%clk 0:00:30.4]} 38. h4 {[%clk 0:00:50.4]} 38...
Be5 {[%clk 0:00:25.4]} 39. Kh5 {[%clk 0:00:36.3]} 39... Rf3 {[%clk 0:00:19.3]}
40. Rd1 {[%clk 0:00:25.5]} 40... Ka5 {[%clk 0:00:16.7]} 41. Nxc5 {[%clk
0:00:22.1]} 41... Rf5+ {[%clk 0:00:13.8]} 42. Kg6 {[%clk 0:00:19.2]} 42... Rf6+
{[%clk 0:00:13.4]} 43. Kh5 {[%clk 0:00:19.3]} 43... dxc5 {[%clk 0:00:13.6]} 44.
Rxe5 {[%clk 0:00:18.7]} 44... Kb4 {[%clk 0:00:14.1]} 45. Re6 {[%clk 0:00:11.8]}
45... Rf5+ {[%clk 0:00:14]} 46. Kxh6 {[%clk 0:00:12.3]} 46... Rxd5 {[%clk
0:00:14.9]} 47. Rb6 {[%clk 0:00:10.9]} 47... Ra5 {[%clk 0:00:12.2]} 48. h5
{[%clk 0:00:10.3]} 48... Kxb3 {[%clk 0:00:12.5]} 49. Kg6 {[%clk 0:00:07.9]}
49... Kc2 {[%clk 0:00:12.9]} 50. Rh1 {[%clk 0:00:06.8]} 50... Kxd3 {[%clk
0:00:13.1]} 51. h6 {[%clk 0:00:07.1]} 51... Ra8 {[%clk 0:00:12.3]} 52. h7 {[%clk
0:00:07.5]} 52... Rdd8 {[%clk 0:00:12.5]} 53. Rxb5 {[%clk 0:00:06.7]} 53... Kc4
{[%clk 0:00:12.8]} 54. Rb7 {[%clk 0:00:05.6]} 54... d3 {[%clk 0:00:12.2]} 55.
Rf7 {[%clk 0:00:02.5]} 55... d2 {[%clk 0:00:12.3]} 56. Rff1 {[%clk 0:00:02.9]}
56... Kc3 {[%clk 0:00:12.4]} 57. Kg7 {[%clk 0:00:02.7]} 57... Kc2 {[%clk
0:00:12.5]} 58. h8=Q {[%clk 0:00:02]} 58... Rxh8 {[%clk 0:00:12.5]} 59. Rxh8
{[%clk 0:00:02.4]} 59... Rxh8 {[%clk 0:00:13.4]} 60. Kxh8 {[%clk 0:00:03.1]}
60... d1=Q {[%clk 0:00:14]} 61. Rxd1 {[%clk 0:00:03.6]} 61... Kxd1 {[%clk
0:00:14.9]} 62. Kg7 {[%clk 0:00:04.4]} 62... c4 {[%clk 0:00:15.8]} 63. Kf6
{[%clk 0:00:05.3]} 63... c3 {[%clk 0:00:16.7]} 64. Ke5 {[%clk 0:00:06.2]} 64...
c2 {[%clk 0:00:17.6]} 65. Kd4 {[%clk 0:00:07.1]} 65... c1=Q {[%clk 0:00:18.5]}
66. Kd5 {[%clk 0:00:08]} 66... Qf4 {[%clk 0:00:18.4]} 67. Ke6 {[%clk 0:00:08.1]}
67... Qg5 {[%clk 0:00:18.8]} 68. Kd6 {[%clk 0:00:08]} 68... Kd2 {[%clk
0:00:19.7]} 69. Kc6 {[%clk 0:00:08.9]} 69... Kd3 {[%clk 0:00:20.6]} 70. Kb6
{[%clk 0:00:09.7]} 70... Kc4 {[%clk 0:00:21.5]} 71. Kc7 {[%clk 0:00:10.6]} 71...
Qf6 {[%clk 0:00:21.4]} 72. Kd7 {[%clk 0:00:11.5]} 72... Kc5 {[%clk 0:00:22.3]}
73. Kc7 {[%clk 0:00:12.4]} 73... Qe7+ {[%clk 0:00:22.2]} 74. Kb8 {[%clk
0:00:12]} 74... Kb6 {[%clk 0:00:23.1]} 75. Ka8 {[%clk 0:00:12.8]} 75... Qa7#
{[%clk 0:00:23.2]} 0-1

[Event "*** Titled Tuesday Blitz"]
[Site "Chess.com"]
[Date "2020.11.10"]
[Round "5"]
[White "sjam6687"]
[Black "lolo9292"]
[Result "1-0"]
[WhiteElo "2717"]
[BlackElo "2531"]
[TimeControl "180+1"]
[EndTime "11:00:19 PST"]
[Termination "sjam6687 won by resignation"]

1. d4 {[%clk 0:03:00.9]} 1... Nf6 {[%clk 0:02:59.4]} 2. c4 {[%clk 0:03:00.2]}
2... g6 {[%clk 0:03:00.3]} 3. Nc3 {[%clk 0:02:57.7]} 3... Bg7 {[%clk 0:03:01.2]}
4. e4 {[%clk 0:02:57.6]} 4... d6 {[%clk 0:03:01.8]} 5. f4 {[%clk 0:02:57.4]}
5... O-O {[%clk 0:03:01.9]} 6. Nf3 {[%clk 0:02:56.5]} 6... c5 {[%clk 0:03:02.5]}
7. d5 {[%clk 0:02:55.7]} 7... e6 {[%clk 0:03:02.9]} 8. Bd3 {[%clk 0:02:52.4]}
8... exd5 {[%clk 0:03:02.8]} 9. cxd5 {[%clk 0:02:53.2]} 9... a6 {[%clk
0:02:59.4]} 10. a4 {[%clk 0:02:50.9]} 10... Bg4 {[%clk 0:02:59.5]} 11. O-O
{[%clk 0:02:50.2]} 11... Nbd7 {[%clk 0:03:00.1]} 12. h3 {[%clk 0:02:48]} 12...
Bxf3 {[%clk 0:03:00.1]} 13. Qxf3 {[%clk 0:02:47]} 13... Ne8 {[%clk 0:03:01]} 14.
a5 {[%clk 0:02:43.7]} 14... Rb8 {[%clk 0:03:00.3]} 15. Be3 {[%clk 0:02:41.9]}
15... Nc7 {[%clk 0:03:00.1]} 16. g4 {[%clk 0:02:38]} 16... b5 {[%clk 0:02:59.7]}
17. axb6 {[%clk 0:02:37.2]} 17... Rxb6 {[%clk 0:02:59.4]} 18. Ra2 {[%clk
0:02:35.4]} 18... Re8 {[%clk 0:02:59]} 19. Qf2 {[%clk 0:02:28.8]} 19... Nb5
{[%clk 0:02:56.1]} 20. Nxb5 {[%clk 0:02:27]} 20... axb5 {[%clk 0:02:57]} 21. b4
{[%clk 0:02:26.5]} 21... f5 {[%clk 0:02:43.9]} 22. bxc5 {[%clk 0:02:22.9]} 22...
dxc5 {[%clk 0:02:43.7]} 23. Bxc5 {[%clk 0:02:21.3]} 23... Nxc5 {[%clk
0:02:43.1]} 24. Qxc5 {[%clk 0:02:16.7]} 24... fxe4 {[%clk 0:02:43]} 25. Bxb5
{[%clk 0:02:14.3]} 25... Rf8 {[%clk 0:02:33.5]} 26. Re2 {[%clk 0:02:07.2]} 26...
Rd6 {[%clk 0:02:22.8]} 27. Bc6 {[%clk 0:02:03.8]} 27... g5 {[%clk 0:02:14.5]}
28. f5 {[%clk 0:02:02.5]} 28... Rh6 {[%clk 0:02:13.6]} 29. Rxe4 {[%clk
0:01:59.5]} 29... Rxh3 {[%clk 0:02:12.4]} 30. Kg2 {[%clk 0:01:59.2]} 30... Rc3
{[%clk 0:02:09.3]} 31. Qe7 {[%clk 0:01:56.3]} 31... Qb6 {[%clk 0:02:04]} 32.
Qxg5 {[%clk 0:01:52.7]} 32... Rc2+ {[%clk 0:02:02.5]} 33. Kg3 {[%clk 0:01:49.3]}
33... Rc3+ {[%clk 0:01:58.3]} 34. Kg2 {[%clk 0:01:45.8]} 34... Rc2+ {[%clk
0:01:58.1]} 35. Kh1 {[%clk 0:01:45.2]} 35... Qb3 {[%clk 0:01:48.1]} 36. Qh4
{[%clk 0:01:41.5]} 36... Qd3 {[%clk 0:01:44.7]} 37. Ref4 {[%clk 0:01:37.1]}
37... Be5 {[%clk 0:01:37.8]} 38. R4f3 {[%clk 0:01:36.8]} 38... Qe4 {[%clk
0:01:33.9]} 39. Bb5 {[%clk 0:01:34.8]} 39... Rh2+ {[%clk 0:01:25.1]} 40. Qxh2
{[%clk 0:01:31.8]} 40... Bxh2 {[%clk 0:01:26]} 41. Kxh2 {[%clk 0:01:32.4]} 41...
Qxd5 {[%clk 0:01:25.4]} 42. Bd3 {[%clk 0:01:32.1]} 42... Rc8 {[%clk 0:01:23.3]}
43. R1f2 {[%clk 0:01:32]} 43... Qe5+ {[%clk 0:01:18.4]} 44. Kg2 {[%clk
0:01:29.4]} 44... Qd4 {[%clk 0:01:10.6]} 45. g5 {[%clk 0:01:25.5]} 45... Rc3
{[%clk 0:01:08.3]} 46. Be2 {[%clk 0:01:25.4]} 46... Qg4+ {[%clk 0:01:06.6]} 47.
Kh2 {[%clk 0:01:23.1]} 47... Qh4+ {[%clk 0:01:04.8]} 48. Kg1 {[%clk 0:01:17.6]}
48... Rc1+ {[%clk 0:01:03.7]} 49. Bf1 {[%clk 0:01:15.3]} 49... Rc5 {[%clk
0:00:59.9]} 50. g6 {[%clk 0:01:11.5]} 50... Qg4+ {[%clk 0:00:51.7]} 51. Kh2
{[%clk 0:01:09.8]} 51... hxg6 {[%clk 0:00:47.7]} 52. fxg6 {[%clk 0:01:04.1]}
52... Qh4+ {[%clk 0:00:41.3]} 53. Bh3 {[%clk 0:01:01.5]} 53... Kg7 {[%clk
0:00:21.2]} 54. Rg2 {[%clk 0:00:57]} 54... Rc1 {[%clk 0:00:14.7]} 55. Rf7+
{[%clk 0:00:53.7]} 55... Kg8 {[%clk 0:00:15]} 56. g7 {[%clk 0:00:53.4]} 56...
Rh1+ {[%clk 0:00:14.7]} 57. Kxh1 {[%clk 0:00:52.1]} 57... Qxh3+ {[%clk
0:00:15.6]} 58. Kg1 {[%clk 0:00:52.1]} 58... Qe3+ {[%clk 0:00:14.2]} 59. Rff2
{[%clk 0:00:49.3]} 59... Qc1+ {[%clk 0:00:14.6]} 60. Kh2 {[%clk 0:00:48.1]}
60... Qh6+ {[%clk 0:00:15.1]} 61. Kg3 {[%clk 0:00:48.9]} 61... Qg5+ {[%clk
0:00:14]} 62. Kf3 {[%clk 0:00:48.4]} 62... Qd5+ {[%clk 0:00:14.5]} 63. Ke3
{[%clk 0:00:48.2]} 63... Qb3+ {[%clk 0:00:14.2]} 64. Ke4 {[%clk 0:00:47]} 64...
Qc4+ {[%clk 0:00:14.3]} 65. Kf5 {[%clk 0:00:47]} 65... Qd5+ {[%clk 0:00:14.7]}
66. Kg4 {[%clk 0:00:46.5]} 66... Kxg7 {[%clk 0:00:13]} 67. Kh3+ {[%clk
0:00:43.8]} 67... Kh6 {[%clk 0:00:11.9]} 68. Rf4 {[%clk 0:00:42.7]} 68... Qd3+
{[%clk 0:00:10.8]} 69. Rg3 {[%clk 0:00:41.8]} 69... Qd7+ {[%clk 0:00:10.7]} 70.
Kg2 {[%clk 0:00:40.4]} 70... Qd2+ {[%clk 0:00:10]} 71. Kf3 {[%clk 0:00:39.8]}
71... Qd3+ {[%clk 0:00:09.4]} 72. Kg4 {[%clk 0:00:39.6]} 72... Kg6 {[%clk
0:00:09]} 73. Kh4+ {[%clk 0:00:38.5]} 73... Kh7 {[%clk 0:00:08.3]} 74. Rxd3
{[%clk 0:00:35.3]} 74... Kg6 {[%clk 0:00:07.6]} 1-0

[Event "*** Titled Tuesday Blitz"]
[Site "Chess.com"]
[Date "2020.11.10"]
[Round "5"]
[White "InitiatingASC"]
[Black "Harry_Rakkel"]
[Result "1-0"]
[WhiteElo "2406"]
[BlackElo "2550"]
[TimeControl "180+1"]
[EndTime "11:00:28 PST"]
[Termination "InitiatingASC won on time"]

1. Nf3 {[%clk 0:03:00.9]} 1... d5 {[%clk 0:02:45.2]} 2. g3 {[%clk 0:03:00.3]}
2... c6 {[%clk 0:02:43.6]} 3. Bg2 {[%clk 0:02:59.6]} 3... Bg4 {[%clk 0:02:43.9]}
4. O-O {[%clk 0:02:59.7]} 4... Nd7 {[%clk 0:02:43.5]} 5. d3 {[%clk 0:02:53.5]}
5... Ngf6 {[%clk 0:02:41.9]} 6. a3 {[%clk 0:02:51.6]} 6... e5 {[%clk 0:02:40.7]}
7. Nbd2 {[%clk 0:02:51.4]} 7... Be7 {[%clk 0:02:36.7]} 8. b4 {[%clk 0:02:51]}
8... O-O {[%clk 0:02:34.4]} 9. Bb2 {[%clk 0:02:51.3]} 9... Qc7 {[%clk 0:02:23]}
10. e4 {[%clk 0:02:48.8]} 10... dxe4 {[%clk 0:02:21.8]} 11. dxe4 {[%clk
0:02:48.7]} 11... a5 {[%clk 0:02:20.9]} 12. c3 {[%clk 0:02:41]} 12... Rfd8
{[%clk 0:02:12.8]} 13. Qc2 {[%clk 0:02:37.2]} 13... Nb6 {[%clk 0:02:03.9]} 14.
h3 {[%clk 0:02:29.8]} 14... Be6 {[%clk 0:01:56.5]} 15. Rfd1 {[%clk 0:02:24]}
15... Nfd7 {[%clk 0:01:43.4]} 16. Kh2 {[%clk 0:02:19.4]} 16... Nc4 {[%clk
0:01:38.9]} 17. Nxc4 {[%clk 0:02:12.9]} 17... Bxc4 {[%clk 0:01:39.8]} 18. Nd2
{[%clk 0:02:13]} 18... Nb6 {[%clk 0:01:35.1]} 19. Nf1 {[%clk 0:02:07.1]} 19...
a4 {[%clk 0:01:30.1]} 20. Rxd8+ {[%clk 0:02:05.5]} 20... Rxd8 {[%clk 0:01:30.4]}
21. Ne3 {[%clk 0:02:06.1]} 21... Bb3 {[%clk 0:01:28.3]} 22. Qe2 {[%clk
0:02:01.6]} 22... Qd7 {[%clk 0:01:26.4]} 23. c4 {[%clk 0:01:51.5]} 23... Qd2
{[%clk 0:01:15.8]} 24. Re1 {[%clk 0:01:40.9]} 24... f6 {[%clk 0:01:08.7]} 25. c5
{[%clk 0:01:32.1]} 25... Nc8 {[%clk 0:01:06.3]} 26. Bf1 {[%clk 0:01:17.5]} 26...
Na7 {[%clk 0:01:04.1]} 27. Bc1 {[%clk 0:01:11.2]} 27... Qxe2 {[%clk 0:00:57.9]}
28. Bxe2 {[%clk 0:01:11.3]} 28... Kf7 {[%clk 0:00:46.2]} 29. Kg2 {[%clk
0:00:57.8]} 29... Rd4 {[%clk 0:00:41.7]} 30. f3 {[%clk 0:00:51.2]} 30... g6
{[%clk 0:00:38.7]} 31. Kf2 {[%clk 0:00:51]} 31... h5 {[%clk 0:00:37.1]} 32. h4
{[%clk 0:00:49.6]} 32... Rd8 {[%clk 0:00:36.1]} 33. g4 {[%clk 0:00:30.7]} 33...
Nb5 {[%clk 0:00:34.1]} 34. Bxb5 {[%clk 0:00:30.1]} 34... cxb5 {[%clk 0:00:33.6]}
35. gxh5 {[%clk 0:00:27.8]} 35... gxh5 {[%clk 0:00:33.2]} 36. Nf5 {[%clk
0:00:27.3]} 36... Bf8 {[%clk 0:00:33.2]} 37. Ke2 {[%clk 0:00:21.7]} 37... Bc4+
{[%clk 0:00:31.4]} 38. Kf2 {[%clk 0:00:20.2]} 38... Rd3 {[%clk 0:00:32]} 39. Ne3
{[%clk 0:00:18.7]} 39... Bb3 {[%clk 0:00:29.9]} 40. Nf5 {[%clk 0:00:18.6]} 40...
Rc3 {[%clk 0:00:29.2]} 41. f4 {[%clk 0:00:14]} 41... Rc2+ {[%clk 0:00:25.4]} 42.
Kf3 {[%clk 0:00:12.8]} 42... Be6 {[%clk 0:00:18.4]} 43. Ne3 {[%clk 0:00:10.7]}
43... Rc3 {[%clk 0:00:16.5]} 44. f5 {[%clk 0:00:11.1]} 44... Bb3 {[%clk
0:00:15.3]} 45. Ke2 {[%clk 0:00:09.8]} 45... Bh6 {[%clk 0:00:13.9]} 46. Bd2
{[%clk 0:00:08.9]} 46... Bc4+ {[%clk 0:00:11.9]} 47. Nxc4 {[%clk 0:00:08.1]}
47... Rxc4 {[%clk 0:00:11.9]} 48. Bxh6 {[%clk 0:00:08.2]} 48... Rxe4+ {[%clk
0:00:12.4]} 49. Kf2 {[%clk 0:00:07.6]} 49... Rxh4 {[%clk 0:00:13.3]} 50. Be3
{[%clk 0:00:06.9]} 50... Rh2+ {[%clk 0:00:13.1]} 51. Kg3 {[%clk 0:00:06.3]}
51... Ra2 {[%clk 0:00:14]} 52. Kh4 {[%clk 0:00:05.1]} 52... Rxa3 {[%clk
0:00:14]} 53. Kxh5 {[%clk 0:00:05.4]} 53... Rb3 {[%clk 0:00:14.5]} 54. Bd2
{[%clk 0:00:05.9]} 54... a3 {[%clk 0:00:14.4]} 55. Ra1 {[%clk 0:00:05.3]} 55...
e4 {[%clk 0:00:14.2]} 56. Kg4 {[%clk 0:00:05.1]} 56... e3 {[%clk 0:00:14.8]} 57.
Be1 {[%clk 0:00:05.5]} 57... e2 {[%clk 0:00:15.3]} 58. Kf4 {[%clk 0:00:05.5]}
58... Ke7 {[%clk 0:00:14.9]} 59. Ke4 {[%clk 0:00:05.7]} 59... Kd7 {[%clk
0:00:15.5]} 60. Kd4 {[%clk 0:00:06.2]} 60... Kc6 {[%clk 0:00:16]} 61. Bd2 {[%clk
0:00:06.7]} 61... Rb2 {[%clk 0:00:14.2]} 62. Be1 {[%clk 0:00:06]} 62... Rb3
{[%clk 0:00:12.3]} 63. Bf2 {[%clk 0:00:05.6]} 63... Kd7 {[%clk 0:00:09.9]} 64.
Be1 {[%clk 0:00:06]} 64... Ke7 {[%clk 0:00:09.7]} 65. Ra2 {[%clk 0:00:06.5]}
65... Rb2 {[%clk 0:00:08.7]} 66. Rxa3 {[%clk 0:00:05.7]} 66... Kf7 {[%clk
0:00:08.5]} 67. Re3 {[%clk 0:00:04.8]} 67... Kg7 {[%clk 0:00:07.6]} 68. Kd3
{[%clk 0:00:04.5]} 68... Kh6 {[%clk 0:00:06.5]} 69. Rxe2 {[%clk 0:00:04.7]}
69... Rb3+ {[%clk 0:00:07]} 70. Ke4 {[%clk 0:00:04.9]} 70... Kg5 {[%clk
0:00:05.9]} 71. Kd5 {[%clk 0:00:05.2]} 71... Rd3+ {[%clk 0:00:05.1]} 72. Ke6
{[%clk 0:00:05.2]} 72... Rd1 {[%clk 0:00:01]} 73. Bd2+ {[%clk 0:00:05.5]} 1-0

[Event "*** Titled Tuesday Blitz"]
[Site "Chess.com"]
[Date "2020.11.10"]
[Round "5"]
[White "Nemsko"]
[Black "Ajedrez_con_German"]
[Result "0-1"]
[WhiteElo "2365"]
[BlackElo "2538"]
[TimeControl "180+1"]
[EndTime "11:00:30 PST"]
[Termination "Ajedrez_con_German won by resignation"]

1. e4 {[%clk 0:03:00.9]} 1... e6 {[%clk 0:03:00.1]} 2. d4 {[%clk 0:03:00.7]}
2... d5 {[%clk 0:03:00.1]} 3. Nc3 {[%clk 0:02:59.1]} 3... dxe4 {[%clk 0:03:00]}
4. Nxe4 {[%clk 0:03:00]} 4... Nd7 {[%clk 0:02:59.7]} 5. Nf3 {[%clk 0:02:58.2]}
5... Ngf6 {[%clk 0:02:59.2]} 6. Bd3 {[%clk 0:02:57.4]} 6... c5 {[%clk
0:02:39.1]} 7. c3 {[%clk 0:02:48]} 7... cxd4 {[%clk 0:02:38.6]} 8. Nxd4 {[%clk
0:02:40]} 8... Be7 {[%clk 0:02:34.9]} 9. O-O {[%clk 0:02:29.8]} 9... O-O {[%clk
0:02:34.3]} 10. Qc2 {[%clk 0:02:26.1]} 10... Nxe4 {[%clk 0:02:32.3]} 11. Bxe4
{[%clk 0:02:27]} 11... Nf6 {[%clk 0:02:32.3]} 12. Bf3 {[%clk 0:02:24.8]} 12...
e5 {[%clk 0:02:23.5]} 13. Nf5 {[%clk 0:02:14.2]} 13... Bxf5 {[%clk 0:02:07.7]}
14. Qxf5 {[%clk 0:02:15.1]} 14... Qc7 {[%clk 0:02:06.7]} 15. Bg5 {[%clk
0:02:07]} 15... g6 {[%clk 0:01:21.7]} 16. Qh3 {[%clk 0:01:50.6]} 16... Rfe8
{[%clk 0:01:14.8]} 17. Rad1 {[%clk 0:01:48.4]} 17... Rad8 {[%clk 0:01:08]} 18.
Qg3 {[%clk 0:01:36.5]} 18... Kg7 {[%clk 0:00:56.5]} 19. Qh4 {[%clk 0:01:16.5]}
19... Ng8 {[%clk 0:00:50.7]} 20. Bxe7 {[%clk 0:00:59.9]} 20... Nxe7 {[%clk
0:00:50.1]} 21. Qa4 {[%clk 0:00:58.2]} 21... b6 {[%clk 0:00:44.5]} 22. Rfe1
{[%clk 0:00:49]} 22... Nf5 {[%clk 0:00:40.6]} 23. h3 {[%clk 0:00:45.7]} 23... f6
{[%clk 0:00:38.3]} 24. Bc6 {[%clk 0:00:34.4]} 24... Rf8 {[%clk 0:00:28.7]} 25.
Be4 {[%clk 0:00:25.4]} 25... Ne7 {[%clk 0:00:25.2]} 26. Re2 {[%clk 0:00:20.4]}
26... Rxd1+ {[%clk 0:00:23.7]} 27. Qxd1 {[%clk 0:00:21.3]} 27... Rd8 {[%clk
0:00:23.7]} 28. Rd2 {[%clk 0:00:21.9]} 28... Rxd2 {[%clk 0:00:22.2]} 29. Qxd2
{[%clk 0:00:22.8]} 29... f5 {[%clk 0:00:21]} 30. Bc2 {[%clk 0:00:20.8]} 30...
Kf6 {[%clk 0:00:20.5]} 31. Bb3 {[%clk 0:00:20.8]} 31... g5 {[%clk 0:00:18.1]}
32. h4 {[%clk 0:00:17.6]} 32... h6 {[%clk 0:00:18.1]} 33. hxg5+ {[%clk
0:00:17.4]} 33... hxg5 {[%clk 0:00:19]} 34. Qe2 {[%clk 0:00:18]} 34... Ng6
{[%clk 0:00:16]} 35. Qd3 {[%clk 0:00:14.9]} 35... g4 {[%clk 0:00:14.4]} 36. Qd5
{[%clk 0:00:14.6]} 36... Qe7 {[%clk 0:00:13.9]} 37. g3 {[%clk 0:00:10.2]} 37...
e4 {[%clk 0:00:14.3]} 38. Qc6+ {[%clk 0:00:08.9]} 38... Kg5 {[%clk 0:00:11.6]}
39. Qd5 {[%clk 0:00:07.7]} 39... Ne5 {[%clk 0:00:09.7]} 40. Qd2+ {[%clk
0:00:07.3]} 40... Kg6 {[%clk 0:00:08.3]} 41. Kg2 {[%clk 0:00:07.5]} 41... Nf3
{[%clk 0:00:08.3]} 42. Qd5 {[%clk 0:00:05.7]} 42... Ne5 {[%clk 0:00:05.8]} 43.
Qg8+ {[%clk 0:00:05.6]} 43... Qg7 {[%clk 0:00:06.1]} 44. Qe6+ {[%clk 0:00:04]}
44... Qf6 {[%clk 0:00:06.5]} 45. Qg8+ {[%clk 0:00:04.3]} 45... Qg7 {[%clk
0:00:06.9]} 46. Qe6+ {[%clk 0:00:04.7]} 46... Kg5 {[%clk 0:00:07.1]} 47. Qd5
{[%clk 0:00:03.3]} 47... Ng6 {[%clk 0:00:04.9]} 48. Qd8+ {[%clk 0:00:03.5]}
48... Qe7 {[%clk 0:00:04.8]} 49. Qd4 {[%clk 0:00:02.2]} 49... Qe5 {[%clk
0:00:03.9]} 50. Qe3+ {[%clk 0:00:02.2]} 50... Kf6 {[%clk 0:00:04.2]} 51. Qh6
{[%clk 0:00:02.3]} 51... f4 {[%clk 0:00:03.2]} 52. gxf4 {[%clk 0:00:02]} 52...
Qxf4 {[%clk 0:00:04.1]} 53. Qxf4+ {[%clk 0:00:02.2]} 53... Nxf4+ {[%clk
0:00:05]} 54. Kg3 {[%clk 0:00:03.1]} 54... Kg5 {[%clk 0:00:05.5]} 55. Bc2 {[%clk
0:00:03.1]} 55... Ne2+ {[%clk 0:00:04.5]} 56. Kg2 {[%clk 0:00:03.5]} 56... Kf4
{[%clk 0:00:04.7]} 57. Kf1 {[%clk 0:00:03.2]} 57... Nc1 {[%clk 0:00:04.9]} 58.
b4 {[%clk 0:00:02.9]} 58... Nd3 {[%clk 0:00:04.6]} 59. a4 {[%clk 0:00:03.2]}
59... Ne5 {[%clk 0:00:04.4]} 60. a5 {[%clk 0:00:03.6]} 60... bxa5 {[%clk
0:00:04.6]} 61. bxa5 {[%clk 0:00:04.5]} 61... Nc6 {[%clk 0:00:04.6]} 62. a6
{[%clk 0:00:04.5]} 62... Nb8 {[%clk 0:00:04.9]} 63. c4 {[%clk 0:00:04]} 63...
Nxa6 {[%clk 0:00:05.2]} 64. Ba4 {[%clk 0:00:04.5]} 64... Nc5 {[%clk 0:00:06.1]}
65. Bb5 {[%clk 0:00:05]} 65... a5 {[%clk 0:00:06.5]} 66. Ke1 {[%clk 0:00:04.8]}
66... a4 {[%clk 0:00:07]} 67. Kd2 {[%clk 0:00:05.3]} 67... Kf3 {[%clk
0:00:06.6]} 68. Ke1 {[%clk 0:00:05.3]} 68... e3 {[%clk 0:00:06.6]} 69. fxe3
{[%clk 0:00:05.6]} 69... Kxe3 {[%clk 0:00:07.5]} 70. Kf1 {[%clk 0:00:06.2]}
70... a3 {[%clk 0:00:07.6]} 0-1